{"text_format":"1","workbook":"xlsx","n_sheets":2,"sheets":["KOMflex Ratio","Sprachendatenbank"],"not_rendered":{"charts":2,"images":1,"macros":0,"external_links":0,"defined_names":1,"comments":0,"pivot_tables":0},"unopened":[],"bounds":{"document_bytes":16777216,"sheet_cells":100000,"rows_first":2000,"rows_last":500,"rows_between":2000,"halvings":0,"cell_chars":16384,"cell_head_chars":4096},"cells_cut":0,"cells_raw":0,"read":"whole","date_system":"1900"}

{"sheet":"KOMflex Ratio","index":0,"n_rows":28,"n_cols":19,"rows_kept":28,"cut":false,"hidden":false,"merged":[[3,1,5,15],[24,10,27,13],[24,14,25,15],[26,14,27,15],[6,4,6,9],[6,10,6,15]]}
[]
[]
[]
[null,{"$f":"(HLOOKUP($S$5,Sprachendatenbank!B:C,_xlfn.XLOOKUP(\"KOMflex Kompensationssystem - Kostenersparnis\",Sprachendatenbank!B:B,Sprachendatenbank!A:A),FALSE))","v":"KOMflex Compensation System - Cost Savings"},null,null,null,null,null,null,null,null,null,null,null,null,null,null,null,null,"Language"]
[null,null,null,null,null,null,null,null,null,null,null,null,null,null,null,null,null,null,"English"]
[]
[null,null,null,null,{"$f":"(HLOOKUP(S5,Sprachendatenbank!B:C,_xlfn.XLOOKUP(\"Kosten bei Jahresstückzahl\",Sprachendatenbank!B:B,Sprachendatenbank!A:A),FALSE))","v":"Cost for yearly Count of Workpieces"},null,null,null,null,null,{"$f":"(HLOOKUP(S5,Sprachendatenbank!B:C,_xlfn.XLOOKUP(\"Jahreskosten gespindelter Bohrungen\",Sprachendatenbank!B:B,Sprachendatenbank!A:A),FALSE))","v":"Annual costs of spindle drilled holes"}]
[]
[null,{"$f":"(HLOOKUP(S5,Sprachendatenbank!B:C,_xlfn.XLOOKUP(\"Bearbeitungsdaten\",Sprachendatenbank!B:B,Sprachendatenbank!A:A),FALSE))","v":"Manufacturing Data"},null,{"$f":"(HLOOKUP(S5,Sprachendatenbank!B:C,_xlfn.XLOOKUP(\"Eingabefeld\",Sprachendatenbank!B:B,Sprachendatenbank!A:A),FALSE))","v":"Input Box"}]
[null,{"$f":"(HLOOKUP(S5,Sprachendatenbank!B:C,_xlfn.XLOOKUP(\"Jahresstückzahl\",Sprachendatenbank!B:B,Sprachendatenbank!A:A),FALSE))","v":"Yearly Number of Workpieces"},null,500000]
[null,{"$f":"(HLOOKUP(S5,Sprachendatenbank!B:C,_xlfn.XLOOKUP(\"Standzeit, Stück pro Schneide\",Sprachendatenbank!B:B,Sprachendatenbank!A:A),FALSE))","v":"Tool life, pcs per cutting edge"},null,200]
[null,{"$f":"(HLOOKUP(S5,Sprachendatenbank!B:C,_xlfn.XLOOKUP(\"Schneidenwechsel\",Sprachendatenbank!B:B,Sprachendatenbank!A:A),FALSE))","v":"Cutting Edge Changes"},null,{"$f":"D10/D11","v":2500}]
[null,{"$f":"(HLOOKUP(S5,Sprachendatenbank!B:C,_xlfn.XLOOKUP(\"Kompensationen bis Schneidenwechsel\",Sprachendatenbank!B:B,Sprachendatenbank!A:A),FALSE))","v":"Compensation until Cutting Edge Change"},null,5]
[null,{"$f":"(HLOOKUP(S5,Sprachendatenbank!B:C,_xlfn.XLOOKUP(\"Lohnkosten\",Sprachendatenbank!B:B,Sprachendatenbank!A:A),FALSE))","v":"Labor Costs"},null,80]
[]
[null,{"$f":"(HLOOKUP(S5,Sprachendatenbank!B:C,_xlfn.XLOOKUP(\"Vergleichsdaten\",Sprachendatenbank!B:B,Sprachendatenbank!A:A),FALSE))","v":"Comparison Data"},{"$f":"(HLOOKUP(S5,Sprachendatenbank!B:C,_xlfn.XLOOKUP(\"closed loop mit KOMflex\",Sprachendatenbank!B:B,Sprachendatenbank!A:A),FALSE))","v":"closed loop with KOMflex"},{"$f":"(HLOOKUP(S5,Sprachendatenbank!B:C,_xlfn.XLOOKUP(\"herkömmliches Spindeln\",Sprachendatenbank!B:B,Sprachendatenbank!A:A),FALSE))","v":"conventional Manufacturing"}]
[null,{"$f":"(HLOOKUP(S5,Sprachendatenbank!B:C,_xlfn.XLOOKUP(\"Zeit für einen Schneidenenwechsel\",Sprachendatenbank!B:B,Sprachendatenbank!A:A),FALSE))","v":"Time for one Cutting Edge Change"},2,5]
[null,{"$f":"(HLOOKUP(S5,Sprachendatenbank!B:C,_xlfn.XLOOKUP(\"Zeit für eine Kompensation\",Sprachendatenbank!B:B,Sprachendatenbank!A:A),FALSE))","v":"Time for one Compensation"},15,3]
[null,{"$f":"(HLOOKUP(S5,Sprachendatenbank!B:C,_xlfn.XLOOKUP(\"Zeit bei einem Werkstück\",Sprachendatenbank!B:B,Sprachendatenbank!A:A),FALSE))","v":"Time for one Workpiece"},{"$f":"((C17+D13*(C18/60))/D11)*60","v":0.97500000000000009},{"$f":"((D17+D13*D18)/D11)*60","v":6}]
[null,{"$f":"(HLOOKUP(S5,Sprachendatenbank!B:C,_xlfn.XLOOKUP(\"Zeit bei Jahresstückzahl\",Sprachendatenbank!B:B,Sprachendatenbank!A:A),FALSE))","v":"Time for yearly Count of Workpieces"},{"$f":"(C19*D10)/3600","v":135.41666666666669},{"$f":"(D19*D10)/3600","v":833.33333333333337}]
[null,{"$f":"(HLOOKUP(S5,Sprachendatenbank!B:C,_xlfn.XLOOKUP(\"Kosten bei einem Werkstück\",Sprachendatenbank!B:B,Sprachendatenbank!A:A),FALSE))","v":"Cost for one Workpiece"},{"$f":"(C19/3600)*D14","v":2.1666666666666671E-2},{"$f":"(D19/3600)*D14","v":0.13333333333333333}]
[null,{"$f":"(HLOOKUP(S5,Sprachendatenbank!B:C,_xlfn.XLOOKUP(\"Kosten bei Jahresstückzahl\",Sprachendatenbank!B:B,Sprachendatenbank!A:A),FALSE))","v":"Cost for yearly Count of Workpieces"},{"$f":"C20*D14","v":10833.333333333336},{"$f":"D20*D14","v":66666.666666666672}]
[]
[null,{"$f":"(HLOOKUP(S5,Sprachendatenbank!B:C,_xlfn.XLOOKUP(\"Ergebnis\",Sprachendatenbank!B:B,Sprachendatenbank!A:A),FALSE))","v":"Result"}]
[null,{"$f":"(HLOOKUP(S5,Sprachendatenbank!B:C,_xlfn.XLOOKUP(\"Zeiterspanis bei Fertigung mit KOMflex\nauf ein Bauteil bezogen\",Sprachendatenbank!B:B,Sprachendatenbank!A:A),FALSE))","v":"Time Savings with KOMflex Manufacturing,\nbased on one workpiece"},null,{"$f":"D19-C19","v":5.0250000000000004},null,null,null,null,null,null,{"$f":"(HLOOKUP(S5,Sprachendatenbank!B:C,_xlfn.XLOOKUP(\"Kostenersparnis\",Sprachendatenbank!B:B,Sprachendatenbank!A:A),FALSE))","v":"Cost Savings"},null,null,null,{"$f":"1-(C22/D22)","v":0.83749999999999991}]
[null,{"$f":"(HLOOKUP(S5,Sprachendatenbank!B:C,_xlfn.XLOOKUP(\"Kostenersparnis bei Fertigung mit KOMflex\nauf ein Bauteil bezogen\",Sprachendatenbank!B:B,Sprachendatenbank!A:A),FALSE))","v":"Cost Savings with KOMflex Manufacturing,\nbased on one workpiece"},null,{"$f":"D21-C21","v":0.11166666666666666}]
[null,{"$f":"(HLOOKUP(S5,Sprachendatenbank!B:C,_xlfn.XLOOKUP(\"Zeiterspanis bei Fertigung mit KOMflex\nauf Jahresaufwand bezogen\",Sprachendatenbank!B:B,Sprachendatenbank!A:A),FALSE))","v":"Time Savings with KOMflex Manufacturing,\nbased on yearly count of workpieces"},null,{"$f":"D20-C20","v":697.91666666666674},null,null,null,null,null,null,null,null,null,null,{"$f":"D22*O25","v":55833.333333333328}]
[null,{"$f":"(HLOOKUP(S5,Sprachendatenbank!B:C,_xlfn.XLOOKUP(\"Kostenersparnis bei Fertigung mit KOMflex\nauf Jahresaufwand bezogen\",Sprachendatenbank!B:B,Sprachendatenbank!A:A),FALSE))","v":"Cost Savings with KOMflex Manufacturing,\nbased on yearly count of workpieces"},null,{"$f":"D22-C22","v":55833.333333333336}]

{"sheet":"Sprachendatenbank","index":1,"n_rows":40,"n_cols":3,"rows_kept":40,"cut":false,"hidden":true,"merged":[]}
[1,"Deutsch","English"]
[2,"KOMflex Kompensationssystem - Kostenersparnis","KOMflex Compensation System - Cost Savings"]
[3,"Bearbeitungsdaten","Manufacturing Data"]
[4,"Eingabefeld","Input Box"]
[5,"Jahresstückzahl","Yearly Number of Workpieces"]
[6,"Standzeit, Stück pro Schneide","Tool life, pcs per cutting edge"]
[7,"Schneidenwechsel","Cutting Edge Changes"]
[8,"Kompensationen bis Schneidenwechsel","Compensation until Cutting Edge Change"]
[9,"Lohnkosten","Labor Costs"]
[10,"Bauteile","Workpieces"]
[11,"Wechsel","Changes"]
[12,"Kompensationen","Compensations"]
[13,"Vergleichsdaten","Comparison Data"]
[14,"closed loop mit KOMflex","closed loop with KOMflex"]
[15,"herkömmliches Spindeln","conventional Manufacturing"]
[16,"Zeit für einen Schneidenenwechsel","Time for one Cutting Edge Change"]
[17,"Zeit für eine Kompensation","Time for one Compensation"]
[18,"Zeit bei einem Werkstück","Time for one Workpiece"]
[19,"Zeit bei Jahresstückzahl","Time for yearly Count of Workpieces"]
[20,"Kosten bei einem Werkstück","Cost for one Workpiece"]
[21,"Kosten bei Jahresstückzahl","Cost for yearly Count of Workpieces"]
[22,"Ergebnis","Result"]
[23,"Zeiterspanis bei Fertigung mit KOMflex\nauf ein Bauteil bezogen","Time Savings with KOMflex Manufacturing,\nbased on one workpiece"]
[24,"Kostenersparnis bei Fertigung mit KOMflex\nauf ein Bauteil bezogen","Cost Savings with KOMflex Manufacturing,\nbased on one workpiece"]
[25,"Zeiterspanis bei Fertigung mit KOMflex\nauf Jahresaufwand bezogen","Time Savings with KOMflex Manufacturing,\nbased on yearly count of workpieces"]
[26,"Kostenersparnis bei Fertigung mit KOMflex\nauf Jahresaufwand bezogen","Cost Savings with KOMflex Manufacturing,\nbased on yearly count of workpieces"]
[27,"Kostenersparnis","Cost Savings"]
[28,"Jahreskosten gespindelter Bohrungen","Annual costs of spindle drilled holes"]
[29]
[30]
[31]
[32]
[33]
[34]
[35]
[36]
[37]
[38]
[39]
[40]